bitfinex/quotes_ETHUSD_20241030
["timestamp","ask_amount","ask_price","bid_price","bid_amount"]
[1730300218827,3.68685,2712.4,2711.9,0.89933701]
[1730300218996,0.01,2712.5,2712.0,3.8753937]
[1730300219328,3.69665,2712.5,2712.0,7.5626037]
[1730300219617,3.68684,2712.4,2712.0,0.1880837]
[1730300219831,3.69651,2712.6,2712.2,4.59279]
[1730300219979,0.01,2712.6,2712.2,4.59279]
[1730300220183,0.01,2712.6,2712.2,4.66652111]
[1730300220499,7.38311,2712.6,2712.3,0.88236831]
[1730300220714,3.6965,2712.6,2712.3,0.88236831]
[1730300220880,3.68675,2712.5,2712.2,0.9058]
[1730300221187,3.68675,2712.5,2712.2,0.97953199]
[1730300221932,3.68677,2712.4,2712.2,0.97953199]
[1730300222089,3.68677,2712.4,2712.0,4.23731]
[1730300222291,3.68677,2712.4,2712.0,5.165085]
[1730300222486,3.68677,2712.4,2712.0,1.477775]
[1730300222701,4.66751,2712.3,2711.9,0.9835]
[1730300222923,3.68704,2712.2,2711.9,0.9835]
[1730300223096,3.68716,2712.2,2711.9,0.9835]
[1730300223427,3.68716,2712.2,2711.7,7.20096298]
[1730300223428,3.68717,2712.1,2711.7,4.49676298]
[1730300223611,3.68717,2712.1,2711.8,0.55]
[1730300223930,3.68717,2712.1,2711.7,5.68401428]
[1730300223931,3.68738,2712.0,2711.7,5.68401428]
[1730300224907,7.37451,2712.1,2711.7,5.68401428]
[1730300225109,3.6872,2712.1,2711.7,9.37172428]
[1730300225332,3.6872,2712.1,2711.7,5.68401428]
[1730300225526,3.68724,2712.1,2711.7,5.68401428]
[1730300225824,3.68734,2712.0,2711.7,5.68401428]
[1730300226182,3.68724,2712.1,2711.7,5.68401428]
[1730300226389,3.68724,2712.1,2711.7,9.37170428]
[1730300226585,3.68724,2712.1,2711.7,5.68401428]
[1730300227329,0.01,2712.2,2711.7,5.68401428]
[1730300227633,3.68724,2712.1,2711.7,9.37171428]
[1730300227787,3.68732,2712.0,2711.7,5.68401428]
[1730300228542,7.3843,2712.2,2711.7,9.37170428]
[1730300228819,3.68723,2712.1,2711.7,9.37170428]
[1730300229349,3.68723,2712.1,2711.7,5.68401428]
[1730300230235,3.68723,2712.1,2711.7,9.37171428]
[1730300230888,0.01,2712.0,2711.5,1.0054]
[1730300231123,3.68853,2711.1,2710.8,0.3695]
[1730300231340,0.01,2711.3,2710.7,4.51866298]
[1730300231341,3.68873,2711.0,2710.7,1.0054]
[1730300231492,3.68873,2711.0,2710.8,0.46946]
[1730300231687,3.68881,2710.9,2710.7,1.0054]
[1730300231895,3.68917,2710.7,2710.5,1.0133]
[1730300232105,3.68917,2710.7,2710.3,4.52656298]
[1730300232324,3.68924,2710.6,2710.3,4.52656298]
[1730300232489,3.68924,2710.6,2710.3,5.71717528]
[1730300232690,3.68945,2710.5,2710.1,3.51326298]
[1730300232926,3.68924,2710.6,2710.1,7.20315298]
[1730300233129,3.68923,2710.6,2710.2,0.842631]
[1730300234144,3.68942,2710.5,2710.2,0.842631]
[1730300234351,3.68923,2710.6,2710.2,0.76884452]
[1730300234640,3.68923,2710.6,2710.2,4.53239109]
[1730300234845,3.68923,2710.6,2710.2,0.84263109]
[1730300235211,3.68923,2710.6,2710.2,4.53239109]
[1730300235624,3.68923,2710.6,2710.2,0.84263109]
[1730300235834,3.69908,2710.7,2710.3,0.80457741]
[1730300236158,3.6999,2710.1,2710.0,0.48522223]
[1730300237245,0.01,2710.3,2710.0,0.48522223]
[1730300237455,0.01,2710.5,2710.1,4.18115572]
[1730300237647,0.02,2710.7,2710.2,3.68974]
[1730300237873,3.70909,2710.7,2710.2,3.68974]
[1730300238163,1.0428,2711.0,2710.5,0.9785]
[1730300238364,7.39701,2711.2,2710.6,4.23911]
[1730300238514,3.68862,2711.1,2710.6,4.23911]
[1730300238710,3.68871,2711.0,2710.6,0.55]
[1730300239147,7.37748,2711.0,2710.6,0.55]
[1730300239459,3.68871,2711.0,2710.6,0.55]
[1730300239813,7.38749,2711.0,2710.5,4.66784]
[1730300240045,3.68895,2710.8,2710.5,0.9785]
[1730300240410,3.69876,2711.0,2710.5,0.9785]
[1730300240622,3.69876,2711.0,2710.6,0.07377707]
[1730300240819,0.01,2711.2,2710.6,0.07377611]
[1730300241051,3.69817,2711.4,2710.7,0.55]
[1730300241052,3.70817,2711.4,2710.7,0.55]
[1730300241294,3.70817,2711.4,2710.7,4.23905]
[1730300241295,0.01,2711.2,2710.7,4.23905]
[1730300241464,3.6985,2711.2,2710.7,4.23905]
[1730300241754,3.68774,2711.7,2710.7,4.23905]
[1730300241755,3.69779,2711.7,2711.3,0.9522]
[1730300242052,0.01,2711.9,2711.3,0.9522]
[1730300242053,0.02,2711.9,2711.3,1.02595758]
[1730300242254,3.68758,2711.8,2711.3,5.53689564]
[1730300242468,0.02,2711.9,2711.5,3.6879]
[1730300242751,0.02,2711.9,2711.3,4.64035]
[1730300242752,7.37529,2711.8,2711.3,4.64035]
[1730300243125,3.69776,2711.7,2711.3,0.9522]
[1730300243317,3.68788,2711.6,2711.1,7.20179298]
[1730300243517,3.69788,2711.6,2711.1,0.9828]
[1730300243718,3.69836,2711.3,2710.9,0.9828]
[1730300243951,3.68847,2711.2,2710.7,0.9828]
[1730300244155,7.37699,2711.2,2710.8,0.55]
[1730300244453,3.68875,2711.0,2710.7,0.9828]
[1730300244616,7.37752,2711.0,2710.7,0.9828]
[1730300244964,0.02,2711.1,2710.7,0.9828]
[1730300245187,0.02,2711.1,2710.7,4.74563159]
[1730300245351,0.02,2711.1,2710.7,4.67186]
[1730300245967,0.01,2711.1,2710.7,4.67186]
[1730300246340,0.02,2711.1,2710.7,0.9828]
[1730300246685,3.68872,2711.0,2710.7,0.9828]
[1730300247284,3.70856,2711.1,2710.7,0.9828]
[1730300247467,0.02,2711.1,2710.7,0.9828]
[1730300247666,3.6887,2711.0,2710.7,0.9828]
[1730300248269,0.01,2711.1,2710.7,0.9828]
[1730300248443,0.01,2711.1,2710.8,3.51326298]
[1730300249769,0.01,2711.1,2710.8,7.27588464]
[1730300249954,3.6982,2711.4,2710.8,8.4706531]
[1730300250276,3.6882,2711.4,2710.9,3.76249572]
[1730300250481,0.01,2711.3,2711.1,3.51326298]
[1730300250783,3.69829,2711.3,2711.1,3.51326298]
[1730300250949,0.01,2711.3,2711.1,3.51326298]
[1730300251456,3.68847,2711.2,2710.8,4.70803144]
[1730300251646,0.01,2711.3,2710.9,0.07376698]
[1730300251841,3.68842,2711.2,2710.8,4.70803144]
[1730300252181,3.69827,2711.3,2710.8,8.39696144]
[1730300252356,3.6882,2711.4,2710.9,3.76257579]
[1730300252558,0.02,2711.5,2711.0,4.23859]
[1730300252750,0.02,2711.5,2711.2,0.8371]
[1730300253097,0.01,2711.8,2711.4,3.51326298]
[1730300253789,3.6976,2711.8,2711.4,3.51326298]
[1730300254494,7.38581,2711.6,2711.2,0.8371]
[1730300254897,7.38584,2711.6,2711.2,0.8371]
[1730300255188,3.69787,2711.6,2711.2,0.8371]
[1730300255383,3.68802,2711.5,2711.2,0.8371]
[1730300255987,3.68821,2711.4,2711.0,0.55]
[1730300256189,0.8953,2711.6,2711.0,0.55]
[1730300256487,3.68811,2711.5,2711.0,4.2386]
[1730300256690,0.01,2711.4,2710.9,4.35036298]
[1730300256862,3.68827,2711.3,2710.9,4.35036298]
[1730300257195,7.37662,2711.3,2710.9,4.35036298]
[1730300257352,3.68827,2711.3,2710.9,4.35036298]
[1730300257689,0.01,2711.4,2710.9,4.35036298]
[1730300257850,3.68826,2711.3,2710.9,4.35036298]
[1730300258049,3.68842,2711.2,2710.9,4.35036298]
[1730300258284,3.68842,2711.2,2710.9,4.62593981]
[1730300258484,3.70822,2711.4,2711.0,0.27557683]
[1730300258752,3.68841,2711.2,2711.0,0.07376594]
[1730300258986,3.68841,2711.2,2710.9,4.35036298]
[1730300259194,0.01,2711.1,2710.9,3.51326298]
[1730300259391,3.69881,2710.9,2710.7,0.27558128]
[1730300259684,3.69881,2710.9,2710.4,0.27558128]
[1730300259685,3.68935,2710.5,2710.4,0.27558128]
[1730300259853,7.37882,2710.5,2710.0,7.96404572]
[1730300260051,3.68949,2710.4,2710.1,0.27555051]
[1730300260592,3.68967,2710.3,2710.0,3.99848521]
[1730300260793,3.68971,2710.3,2710.0,4.07227735]
[1730300260995,3.6996,2710.4,2710.1,0.27555417]
[1730300261158,7.38859,2710.6,2710.1,3.68984]
[1730300261492,3.69929,2710.6,2710.1,3.96538242]
[1730300262458,7.38861,2710.6,2710.1,3.96538242]
[1730300262659,3.69929,2710.6,2710.2,1.16538076]
[1730300262883,3.69929,2710.6,2710.2,1.51471017]
[1730300263086,3.68936,2710.5,2710.2,1.51471017]
[1730300263394,3.68936,2710.5,2710.2,1.44092318]
[1730300263571,3.68951,2710.4,2710.1,0.27554242]
[1730300263902,7.37908,2710.4,2710.1,0.55]
[1730300264055,3.68951,2710.4,2710.1,0.27554242]
[1730300264262,3.69971,2710.3,2710.0,0.76081665]
[1730300264598,3.68987,2710.2,2710.0,0.48522223]
[1730300264754,0.01,2710.3,2710.0,0.48522223]
[1730300264960,3.69964,2710.3,2710.0,0.48522223]
[1730300265185,3.68977,2710.2,2710.0,0.48522223]
[1730300266455,3.6899,2710.1,2710.0,0.48522223]
[1730300266661,3.6999,2710.1,2710.0,0.48522223]
[1730300267203,4.539337,2710.1,2710.0,0.48522223]
[1730300275507,3.7099,2710.1,2710.0,0.48522223]
[1730300276009,3.6999,2710.1,2710.0,0.48522223]
[1730300276167,0.9047,2710.3,2710.0,0.48522223]
[1730300276168,3.7097,2710.3,2710.0,0.48522223]
[1730300276362,3.6897,2710.3,2710.0,3.99848521]
[1730300276685,3.70936,2710.5,2710.1,0.55]
[1730300276887,3.70936,2710.5,2710.1,0.82579066]
[1730300277272,3.70936,2710.5,2710.1,0.82580157]
[1730300278303,3.69936,2710.5,2710.1,4.51568157]
[1730300278463,3.70936,2710.5,2710.2,0.90326839]
[1730300278667,3.70936,2710.5,2710.2,1.17906996]
[1730300279384,7.39883,2710.5,2710.2,1.17906996]
[1730300279581,3.70936,2710.5,2710.2,0.90326839]
[1730300280010,3.69936,2710.5,2710.2,0.90326839]
[1730300280276,3.68956,2710.4,2710.2,0.90326839]
[1730300280507,3.70936,2710.5,2710.1,0.82580157]
[1730300280508,0.01,2710.2,2710.1,0.27580157]
[1730300280677,3.69976,2710.2,2710.0,0.48522223]
[1730300281116,3.69978,2710.2,2710.0,0.48522223]
[1730300281335,7.37964,2710.2,2710.0,0.48522223]
[1730300281488,3.68978,2710.2,2710.0,0.76102833]
[1730300282085,3.6899,2710.1,2710.0,0.76102833]
[1730300282480,3.6999,2710.1,2710.0,0.48522223]
[1730300282815,3.6999,2710.1,2710.0,0.76102833]
[1730300282816,3.6899,2710.1,2710.0,0.76102833]
[1730300283114,3.6899,2710.1,2710.0,0.48522223]
[1730300283417,3.69978,2710.2,2710.0,0.76102833]
[1730300284215,0.01,2710.2,2710.1,0.2758061]
[1730300284415,3.6897,2710.3,2710.1,0.2758061]
[1730300284780,0.01,2710.2,2710.1,0.2758061]
[1730300284980,3.69976,2710.2,2710.1,0.27589731]
[1730300285180,0.01,2710.2,2710.1,0.27589731]
[1730300285405,3.69976,2710.2,2710.1,0.27589731]
[1730300285729,0.01,2710.2,2710.1,0.27589731]
[1730300286287,3.69976,2710.2,2710.1,0.27589731]
[1730300286480,3.69976,2710.2,2710.1,0.27594781]
[1730300286993,0.01,2710.2,2710.1,0.27594781]
[1730300287513,3.69976,2710.2,2710.1,0.27594781]
[1730300287696,4.448699,2710.2,2710.1,0.27594781]
[1730300288031,0.01,2710.2,2710.1,1.04914781]
[1730300288180,0.02,2710.4,2710.2,0.55]
[1730300288383,0.01,2710.4,2710.3,0.27596078]
[1730300289825,3.69949,2710.4,2710.3,0.27596078]
[1730300290119,0.01,2710.4,2710.3,0.27596078]
[1730300291198,0.01,2710.4,2710.3,3.96558078]
[1730300291598,0.01,2710.4,2710.3,1.04916078]
[1730300292027,0.02,2710.8,2710.4,0.55]
[1730300292350,0.02,2710.8,2710.6,0.55]
[1730300292513,0.02,2710.8,2710.6,0.82596078]
[1730300293239,3.70894,2710.8,2710.6,0.55]
[1730300293540,3.70894,2710.8,2710.6,0.27589173]
[1730300293710,3.68908,2710.7,2710.6,0.27589173]
[1730300294408,3.68922,2710.6,2710.4,0.27589173]
[1730300294626,3.68922,2710.6,2710.5,0.27589173]
[1730300294627,3.69922,2710.6,2710.5,0.27589173]
[1730300294835,3.69922,2710.6,2710.4,0.27589173]
[1730300295021,3.69922,2710.6,2710.3,0.84698514]
[1730300295022,3.69922,2710.6,2710.5,0.27589173]
[1730300295334,3.69922,2710.6,2710.4,0.27589173]
[1730300295537,3.68935,2710.5,2710.3,0.7732]
[1730300295848,3.69922,2710.6,2710.4,0.27591821]
[1730300296023,7.38855,2710.6,2710.5,0.27591624]
[1730300296227,3.69922,2710.6,2710.4,0.27591624]
[1730300296401,3.68935,2710.5,2710.2,0.27591624]
[1730300296606,3.68935,2710.5,2710.3,0.27591624]
[1730300296826,3.68935,2710.5,2710.4,0.27591624]
[1730300297934,3.69924,2710.6,2710.1,8.15282]
[1730300298135,3.69924,2710.6,2710.4,0.27595992]
[1730300298136,3.68935,2710.5,2710.4,0.27595992]
[1730300298418,3.69924,2710.6,2710.4,0.27595992]
[1730300298629,3.69924,2710.6,2710.5,0.27595992]
[1730300298839,3.69924,2710.6,2710.2,0.55]
[1730300298840,3.69924,2710.6,2710.3,0.27595992]
[1730300299021,3.69924,2710.6,2710.4,0.27595992]
[1730300299318,3.69924,2710.6,2710.5,0.27595992]
[1730300299643,3.6894,2710.5,2710.3,0.27595992]
[1730300299941,3.69924,2710.6,2710.4,0.27595992]
[1730300299942,3.69922,2710.6,2710.4,0.27595992]
[1730300300150,3.69922,2710.6,2710.5,0.27595992]
[1730300300317,4.55546,2710.8,2710.5,0.27595992]
[1730300300647,3.68915,2710.7,2710.6,0.27595992]
[1730300300804,3.70897,2710.8,2710.5,0.55]
[1730300301003,3.68908,2710.7,2710.6,0.27595992]
[1730300301331,0.02,2710.8,2710.6,0.27595992]
[1730300301531,3.68908,2710.7,2710.6,0.27595992]
[1730300301733,3.709,2710.8,2710.6,0.27595992]
[1730300302806,0.02,2710.8,2710.5,0.55]
[1730300303125,3.70895,2710.8,2710.6,0.27596635]
[1730300304319,3.70895,2710.8,2710.7,0.27596635]
[1730300304520,3.70895,2710.8,2710.6,0.27596635]
[1730300304720,3.70895,2710.8,2710.7,0.27596635]
[1730300304921,0.01,2710.8,2710.6,0.27596635]
[1730300305125,3.68849,2711.2,2710.8,4.23894]
[1730300305126,3.70849,2711.2,2710.8,4.23894]
[1730300305325,3.70849,2711.2,2710.9,0.27596635]
[1730300305518,7.39699,2711.2,2711.0,0.27596635]
[1730300305846,3.68867,2711.0,2710.9,0.27596635]
[1730300306050,3.68867,2711.0,2710.7,0.55]
[1730300306218,3.68867,2711.0,2710.8,0.27596635]
[1730300306551,3.69867,2711.0,2710.9,0.27596635]
[1730300306748,3.68867,2711.0,2710.8,0.27596635]
[1730300306925,3.68854,2711.1,2710.8,0.2759408]
[1730300307246,3.68854,2711.1,2710.9,0.27594085]
[1730300307549,3.70845,2711.2,2710.9,0.55]
[1730300307765,3.70845,2711.2,2711.0,0.27594085]
[1730300307910,3.70845,2711.2,2711.1,0.27594085]
[1730300308110,3.70845,2711.2,2710.9,1.3232]
[1730300308111,3.70845,2711.2,2711.0,0.27594085]
[1730300308405,3.70841,2711.2,2710.9,1.59914085]
[1730300308620,3.6886,2711.1,2710.9,1.59914085]
[1730300308808,3.68867,2711.0,2710.9,1.3232]
[1730300309028,7.3969,2711.2,2710.9,1.3232]
[1730300309232,3.6886,2711.1,2710.9,1.59914085]
[1730300309451,3.6886,2711.1,2710.9,1.3232]
[1730300309839,3.6886,2711.1,2710.9,1.59914085]
[1730300310143,3.68867,2711.0,2710.9,1.3232]
[1730300310346,3.68855,2711.1,2710.9,1.3232]
[1730300310711,0.02,2711.2,2710.9,1.3232]
[1730300311019,3.68858,2711.1,2710.9,1.3232]
[1730300312111,3.70842,2711.2,2710.9,1.3232]
[1730300313012,7.39692,2711.2,2710.9,1.3232]
[1730300313426,3.70842,2711.2,2710.9,1.3232]
[1730300314126,3.70842,2711.2,2710.9,1.59884042]
[1730300314515,3.70842,2711.2,2710.9,1.3232]
[1730300315449,0.02,2711.2,2710.9,6.18522846]
[1730300315653,0.02,2711.2,2711.0,0.27564042]
[1730300315949,0.01,2711.6,2711.4,0.55]
[1730300316322,0.01,2711.6,2711.4,0.82553169]
[1730300316553,0.02,2711.6,2711.4,0.55]
[1730300317463,3.70786,2711.6,2711.3,0.55]
[1730300317629,3.70786,2711.6,2711.3,0.82551208]
[1730300317816,0.02,2711.6,2711.3,0.82551208]
[1730300318017,0.02,2711.6,2711.3,5.04250129]
[1730300318243,3.70786,2711.6,2711.3,1.07872921]
[1730300318653,0.01,2711.6,2711.3,4.76689921]
[1730300318822,0.01,2711.6,2711.4,0.85556308]
[1730300319924,0.01,2711.6,2711.4,4.54369308]
[1730300320267,3.69725,2712.1,2711.6,0.7734]
[1730300320464,3.70719,2712.1,2711.7,5.1250258]
[1730300320969,3.68739,2712.0,2711.7,1.4373858]
[1730300321123,3.68731,2712.0,2711.7,1.4373858]
[1730300321725,3.70719,2712.1,2711.7,1.4373858]
[1730300321948,3.68745,2711.9,2711.8,0.24862662]
[1730300322118,3.70719,2712.1,2711.7,1.4373858]
[1730300322119,0.02,2712.1,2711.7,1.4373858]
[1730300322323,3.68733,2712.0,2711.7,1.4373858]
[1730300322637,3.70719,2712.1,2711.7,1.4373858]
[1730300322952,3.70719,2712.1,2711.7,5.1250958]
[1730300323160,0.01,2712.5,2712.0,3.68731]
[1730300323460,0.01,2712.7,2712.4,4.28666298]
[1730300323629,3.69648,2712.7,2712.4,0.7734]
[1730300323837,3.68656,2712.6,2712.4,0.7734]
[1730300324062,3.69639,2712.7,2712.4,0.7734]
[1730300324247,3.68654,2712.6,2712.4,0.7734]
[1730300324552,3.69672,2712.5,2712.1,4.83666298]
[1730300324757,3.69672,2712.5,2712.2,0.4836663]
[1730300325163,0.01,2712.5,2712.2,0.4836663]
[1730300325460,3.69663,2712.5,2712.2,0.4836663]
[1730300325655,0.01,2712.5,2712.2,0.4836663]
[1730300326444,0.01,2712.5,2712.3,0.90074993]
[1730300326652,3.6967,2712.5,2712.2,0.4836663]
[1730300326821,0.01,2712.5,2712.2,0.4836663]
[1730300328139,0.01,2712.5,2712.4,3.51326298]
[1730300328368,0.01,2712.5,2712.4,7.97343298]
[1730300328584,0.01,2712.5,2712.4,9.18783291]
[1730300328940,0.01,2712.9,2712.4,5.50106291]
[1730300329167,0.01,2712.9,2712.8,3.51326298]
[1730300331513,0.8637,2713.0,2712.8,3.51326298]
[1730300331660,4.54965,2713.0,2712.8,3.51326298]
[1730300331843,0.8637,2713.0,2712.8,3.51326298]
[1730300332177,0.01,2713.0,2712.9,0.3513263]
[1730300337474,3.69595,2713.0,2712.9,0.3513263]
[1730300337778,0.01,2713.0,2712.9,0.3513263]
[1730300339197,0.01,2713.2,2712.9,0.3513263]
[1730300339399,0.02,2713.4,2713.1,4.06326298]
[1730300339602,0.02,2713.4,2713.2,0.55]
[1730300340410,0.02,2713.4,2713.1,3.51326298]
[1730300340687,7.37129,2713.3,2713.1,3.51326298]
[1730300340888,3.68562,2713.3,2713.1,3.94783067]
[1730300341689,3.70541,2713.4,2713.1,3.94783067]
[1730300341888,3.69541,2713.4,2713.1,3.94783067]
[1730300342124,0.01,2713.4,2713.1,3.94783067]
[1730300342527,0.01,2713.4,2713.2,1.39661346]
[1730300343020,0.01,2713.4,2713.3,0.7499]
[1730300343219,0.02,2713.4,2713.2,1.39661346]
[1730300343425,0.01,2713.4,2713.2,1.39661346]
[1730300343826,3.70542,2713.4,2713.2,1.39661346]
[1730300344129,3.70542,2713.4,2713.1,4.43568]
[1730300344130,0.02,2713.4,2713.1,4.43568]
[1730300344288,0.01,2713.4,2713.3,3.51326298]
[1730300345127,0.01,2713.6,2713.3,3.51326298]
[1730300345313,3.6952,2713.6,2713.3,3.51326298]
[1730300345626,3.68529,2713.5,2713.3,3.51326298]
[1730300345825,3.68529,2713.5,2713.4,0.3513263]
[1730300346305,3.68529,2713.5,2713.3,3.51326298]
[1730300346306,3.68541,2713.4,2713.3,3.51326298]
[1730300347756,0.02,2712.7,2712.3,0.7499]
[1730300347915,0.02,2712.7,2712.3,4.26316298]
[1730300347916,3.6865,2712.6,2712.3,4.26316298]
[1730300348113,3.68664,2712.5,2712.3,4.26316298]
[1730300348351,3.68664,2712.5,2712.4,0.4263163]
[1730300348664,3.6865,2712.6,2712.4,0.4263163]
[1730300350151,3.68677,2712.4,2712.3,3.51326298]
[1730300350521,3.68704,2712.2,2712.0,4.26316298]
[1730300351042,3.68701,2712.3,2712.0,4.26316298]
[1730300351352,3.69687,2712.4,2712.1,0.55]
[1730300351530,3.68699,2712.3,2712.1,0.9763163]
[1730300352967,3.68699,2712.3,2712.1,0.55]
[1730300353644,3.68625,2712.8,2711.6,3.68775]
[1730300353645,4.52306,2712.0,2711.6,0.7499]
[1730300353847,3.68765,2711.8,2711.5,2.12117906]
[1730300354049,3.68785,2711.6,2711.5,2.40828697]
[1730300354357,3.68818,2711.4,2711.2,3.51326298]
[1730300355019,3.68826,2711.3,2711.2,3.51326298]
[1730300355225,3.69826,2711.3,2711.2,3.51326298]
[1730300356337,0.01,2711.3,2711.2,3.51326298]
[1730300357960,3.69826,2711.3,2711.2,3.51326298]
[1730300358730,3.68854,2711.1,2710.9,3.51326298]
[1730300358936,3.68854,2711.1,2710.9,3.93957928]
[1730300359160,0.01,2711.2,2710.9,3.93957928]
[1730300359361,3.69841,2711.2,2710.9,3.93957928]
[1730300359738,3.68841,2711.2,2710.9,3.93957928]
[1730300359941,3.69841,2711.2,2710.9,3.93957928]
[1730300361165,0.01,2711.2,2710.9,3.93957928]
[1730300361617,0.01,2710.9,2710.4,0.7499]
[1730300361732,0.01,2710.9,2710.5,3.51326298]
[1730300362072,3.68896,2710.8,2710.5,3.51326298]
[1730300362528,3.69888,2710.9,2710.5,3.58704195]
[1730300362729,3.69881,2710.9,2710.8,3.51326298]
[1730300364158,3.69846,2711.2,2710.9,0.55]
[1730300364556,3.6886,2711.1,2710.9,0.55]
[1730300364947,0.01,2711.2,2710.9,0.55]
[1730300365142,3.6984,2711.2,2710.9,0.55]
[1730300365771,3.69907,2710.8,2710.5,3.51326298]
[1730300365930,3.6991,2710.7,2710.5,3.51326298]
[1730300366131,3.69915,2710.7,2710.5,3.51326298]
[1730300366330,3.68922,2710.6,2710.5,3.51326298]
[1730300367070,0.01,2710.7,2710.5,3.51326298]
[1730300367366,3.69909,2710.7,2710.5,3.51326298]
[1730300367576,7.38826,2710.7,2710.5,3.51326298]
[1730300367871,3.68922,2710.6,2710.5,3.51326298]
[1730300368463,3.69909,2710.7,2710.5,3.51326298]
[1730300369192,0.9256,2710.8,2710.5,3.51326298]
[1730300369193,0.01,2710.8,2710.5,3.51326298]
[1730300369513,3.6989,2710.9,2710.5,3.51326298]
[1730300369514,0.01,2710.9,2710.6,0.55]
[1730300369700,0.01,2710.9,2710.8,3.51326298]
[1730300370687,3.69881,2710.9,2710.8,3.51326298]
[1730300371015,0.01,2710.9,2710.8,3.51326298]
[1730300371503,3.69881,2710.9,2710.8,3.51326298]
[1730300374728,0.01,2711.1,2710.8,3.91958928]
[1730300375037,3.68867,2711.0,2710.8,3.91958928]
[1730300375240,3.69854,2711.1,2710.8,3.91958928]
[1730300375531,0.01,2710.9,2710.8,3.91958928]
[1730300375730,3.69854,2711.1,2710.8,3.91958928]
[1730300375933,0.01,2711.1,2710.8,3.91958928]
[1730300376131,3.69855,2711.1,2710.8,3.91822972]
[1730300376308,0.01,2711.1,2710.8,3.91822972]
[1730300376658,0.01,2711.1,2710.9,0.76072797]
[1730300377000,3.6986,2711.1,2710.9,0.76072797]
[1730300377333,3.68868,2711.0,2710.7,3.51326298]
[1730300377533,3.68894,2710.8,2710.5,0.7499]
[1730300377739,3.68894,2710.8,2710.5,0.55]
[1730300377948,3.68894,2710.8,2710.4,3.51326298]
[1730300377949,3.69931,2710.6,2710.4,3.51326298]
[1730300378107,3.68935,2710.5,2710.4,3.51326298]
[1730300378450,3.69928,2710.6,2710.4,3.51326298]
[1730300379108,0.01,2710.6,2710.4,3.51326298]
[1730300380746,4.56236,2710.8,2710.4,3.51326298]
[1730300381313,3.6993,2710.6,2710.3,0.6682]
[1730300381713,3.6993,2710.6,2710.2,7.20302298]
[1730300382237,3.69929,2710.6,2710.2,8.46540921]
[1730300383416,3.69929,2710.6,2710.3,3.68959]
[1730300383417,0.01,2710.6,2710.3,3.68959]
[1730300384356,0.01,2710.6,2710.2,8.46540921]
[1730300384531,0.01,2710.6,2710.2,12.15509921]
[1730300384711,0.01,2710.6,2710.3,4.97188992]
[1730300385216,0.8634,2710.8,2710.4,3.68946]
[1730300385526,0.02,2710.8,2710.5,7.20259298]
[1730300385731,0.01,2711.0,2710.7,3.68908]
[1730300386148,3.69873,2711.0,2710.6,4.3574]
[1730300386345,3.69873,2711.0,2710.6,5.0776643]
[1730300386853,3.69873,2711.0,2710.6,1.3884643]
[1730300387420,3.69873,2711.0,2710.6,5.0776043]
[1730300387744,7.38753,2711.0,2710.7,1.22801273]
[1730300387963,3.69873,2711.0,2710.6,0.6682]
[1730300388125,3.69915,2710.7,2710.4,0.55]
[1730300388845,0.01,2710.7,2710.4,0.55]
[1730300389627,3.69911,2710.7,2710.4,0.55]
[1730300390328,3.68922,2710.6,2710.2,3.51326298]
[1730300390529,0.8448,2710.6,2710.2,7.20295298]
[1730300390871,0.8448,2710.6,2710.2,8.46531922]
[1730300391256,0.8448,2710.6,2710.3,3.68961]
[1730300391586,0.01,2710.7,2710.3,3.68953]
[1730300391775,3.68922,2710.6,2710.5,3.51326298]
[1730300392330,3.69912,2710.7,2710.5,3.51326298]
[1730300392669,3.68922,2710.6,2710.5,3.51326298]
[1730300393338,3.69909,2710.7,2710.5,3.51326298]
[1730300394378,3.68922,2710.6,2710.5,3.51326298]
[1730300394534,3.69909,2710.7,2710.5,3.51326298]
[1730300397387,0.01,2710.7,2710.5,3.51326298]
[1730300397695,0.01,2710.9,2710.5,8.59100528]
[1730300397858,0.01,2710.9,2710.8,3.51326298]
[1730300398584,0.01,2711.0,2710.8,7.20213298]
[1730300398945,0.01,2711.0,2710.8,7.20212298]
[1730300399140,0.01,2711.0,2710.8,7.92971278]
[1730300399388,0.01,2711.0,2710.8,4.24085278]
[1730300399589,0.01,2711.0,2710.8,3.51326298]
[1730300400793,0.01,2711.0,2710.6,3.51326298]
[1730300401091,0.01,2710.9,2710.6,7.20246298]
[1730300401247,0.01,2710.9,2710.6,7.20240298]
[1730300401452,0.01,2711.0,2710.7,0.7870603]
[1730300401816,0.01,2711.0,2710.9,7.20207298]
[1730300402148,0.01,2711.2,2710.9,7.20207298]
[1730300402582,0.01,2711.2,2710.9,7.76707298]
[1730300403494,3.69849,2711.2,2710.9,4.07826298]
[1730300403716,3.68854,2711.1,2710.8,0.55]
[1730300403861,0.01,2710.6,2710.3,3.51326298]
[1730300404061,3.68935,2710.5,2710.1,0.565]
[1730300404257,0.01,2710.6,2710.4,4.23161085]
[1730300404994,0.7814,2710.7,2710.4,7.92108085]
[1730300405299,0.02,2710.8,2710.4,7.92108085]
[1730300405501,0.02,2710.8,2710.4,4.40781787]
[1730300405707,0.02,2710.8,2710.4,7.92108085]
[1730300405895,3.70902,2710.8,2710.4,4.23161085]
[1730300406078,3.70902,2710.8,2710.4,7.92109085]
[1730300406273,3.70902,2710.8,2710.4,4.23161085]
[1730300406466,3.68914,2710.7,2710.5,0.71834787]
[1730300406667,0.02,2710.8,2710.6,0.71834787]
[1730300406900,0.02,2710.8,2710.7,0.71834787]
[1730300407098,6.68816,2711.4,2710.7,5.76445396]
[1730300407099,0.02,2711.0,2710.7,5.76445396]
[1730300407285,0.01,2711.0,2710.8,4.23161085]
[1730300407482,0.01,2711.0,2710.9,0.71834787]